bitfinex-derivatives/quotes_BTCF0:USTF0_20250422
["timestamp","ask_amount","ask_price","bid_price","bid_amount"]
[1745339256020,0.7970807,90777.0,90776.0,0.4352578]
[1745339256616,0.7970807,90777.0,90776.0,0.41597579]
[1745339257217,0.7970807,90777.0,90776.0,0.35597579]
[1745339257417,0.9922807,90777.0,90776.0,0.35597579]
[1745339258524,0.9922807,90777.0,90776.0,0.10744]
[1745339259122,1.1842807,90777.0,90776.0,0.10744]
[1745339259623,1.1842807,90777.0,90776.0,0.11744]
[1745339261821,1.1842807,90777.0,90776.0,0.08989185]
[1745339262023,1.1842807,90777.0,90776.0,0.05022249]
[1745339264030,1.1842807,90777.0,90776.0,0.02377633]
[1745339264432,1.1842807,90777.0,90776.0,0.10944224]
[1745339264626,1.1842807,90777.0,90776.0,0.2102403]
[1745339265630,1.1842807,90777.0,90776.0,0.1001584]
[1745339266729,1.1842807,90777.0,90776.0,0.10944]
[1745339267429,1.5450807,90777.0,90776.0,0.10944]
[1745339268027,1.5450807,90777.0,90776.0,0.06976949]
[1745339268826,1.5450807,90777.0,90776.0,0.04222052]
[1745339269134,0.1100928,90767.0,90766.0,0.3608]
[1745339269433,0.4708928,90767.0,90766.0,0.02]
[1745339269634,0.1101037,90758.0,90757.0,0.1150632]
[1745339269831,0.1101037,90758.0,90757.0,0.2645032]
[1745339270326,0.3021037,90758.0,90757.0,0.2645032]
[1745339270530,0.6738037,90758.0,90757.0,0.2645032]
[1745339271027,0.6738037,90758.0,90757.0,0.1543983]
[1745339271329,0.6738037,90758.0,90757.0,0.2645032]
[1745339271826,1.1738037,90758.0,90757.0,0.1543983]
[1745339272033,1.1748037,90758.0,90757.0,0.12894687]
[1745339272219,1.1758037,90758.0,90757.0,0.12994687]
[1745339272423,1.1748037,90758.0,90757.0,0.12894687]
[1745339272624,1.1788037,90758.0,90757.0,0.12894687]
[1745339272920,1.1788037,90758.0,90757.0,0.10965942]
[1745339273126,1.1808037,90758.0,90757.0,0.10865942]
[1745339274024,1.1808037,90758.0,90757.0,0.06898236]
[1745339275031,1.1768037,90758.0,90757.0,0.05520559]
[1745339275333,1.1808037,90758.0,90757.0,0.05520559]
[1745339276920,0.1101134,90750.0,90749.0,0.58756]
[1745339277127,0.4709134,90750.0,90749.0,0.687]
[1745339277333,0.1101256,90740.0,90736.0,0.184]
[1745339277630,0.1101292,90737.0,90736.0,0.04]
[1745339277826,0.1101292,90737.0,90736.0,0.13944]
[1745339278332,0.3021292,90737.0,90736.0,0.07288026]
[1745339278526,0.1101329,90734.0,90733.0,0.09944]
[1745339278727,0.4709329,90734.0,90733.0,0.09944]
[1745339279229,0.6629329,90734.0,90733.0,0.09944]
[1745339279430,1.3478329,90734.0,90733.0,0.09944]
[1745339280030,1.3478329,90734.0,90733.0,0.03329597]
[1745339280333,1.3488329,90734.0,90733.0,0.03429597]
[1745339280632,0.694,90734.0,90733.0,0.27464207]
[1745339280827,0.694,90734.0,90733.0,0.68674207]
[1745339281231,0.502,90734.0,90733.0,0.66745433]
[1745339281432,0.502,90734.0,90733.0,1.06175433]
[1745339281828,0.002,90734.0,90733.0,1.06175433]
[1745339282238,0.1121329,90734.0,90733.0,0.84140823]
[1745339282426,0.1121329,90734.0,90733.0,0.95154233]
[1745339282946,0.1121329,90734.0,90733.0,0.8274]
[1745339283233,0.3041329,90734.0,90733.0,0.5321]
[1745339283835,0.3041329,90734.0,90733.0,0.9228]
[1745339284225,0.8041329,90734.0,90733.0,0.9228]
[1745339284642,0.8041329,90734.0,90733.0,1.0329341]
[1745339284934,0.8041329,90734.0,90733.0,1.01915447]
[1745339286533,0.8041329,90734.0,90733.0,0.60705447]
[1745339287233,0.8041329,90734.0,90733.0,0.49692037]
[1745339287836,0.8041329,90734.0,90733.0,0.1]
[1745339288140,0.8041329,90734.0,90733.0,0.07354292]
[1745339288830,0.694,90734.0,90733.0,0.1101341]
[1745339289028,0.694,90734.0,90733.0,0.2091341]
[1745339289231,0.8925,90734.0,90733.0,0.2091341]
[1745339289425,0.8925,90734.0,90733.0,0.5852341]
[1745339289625,1.0026329,90734.0,90733.0,0.6452341]
[1745339291127,0.694,90734.0,90733.0,0.6452341]
[1745339291332,0.3608,90743.0,90742.0,0.1101231]
[1745339291528,0.3608,90743.0,90742.0,0.08747479]
[1745339291737,0.3608,90743.0,90742.0,0.10747479]
[1745339292539,0.3638,90743.0,90742.0,0.10747479]
[1745339293239,0.3751826,90743.0,90742.0,0.10747479]
[1745339294234,0.0143826,90743.0,90742.0,0.10747479]
[1745339294435,0.0550501,90761.0,90742.0,0.1502]
[1745339294632,0.0550501,90761.0,90751.0,0.1101122]
[1745339294633,0.1848,90752.0,90751.0,0.1101122]
[1745339294936,0.1101037,90759.0,90758.0,0.1101016]
[1745339295136,0.1101037,90759.0,90758.0,0.48802526]
[1745339295835,0.1848,90760.0,90759.0,0.1101025]
[1745339296030,0.3608,90777.0,90761.0,0.1021001]
[1745339296237,0.1968,90767.0,90761.0,0.1021001]
[1745339296442,0.1968,90767.0,90761.0,0.1181001]
[1745339296738,0.1968,90767.0,90761.0,0.62928009]
[1745339297133,0.00838508,90762.0,90761.0,0.99008009]
[1745339297335,0.1968,90776.0,90767.0,0.1100928]
[1745339297531,0.00858679,90768.0,90767.0,0.1290928]
[1745339297737,0.00016529,90768.0,90767.0,0.4884928]
[1745339298135,0.00016529,90768.0,90767.0,0.5984928]
[1745339298530,0.00016529,90768.0,90767.0,0.6004928]
[1745339299340,0.00116529,90768.0,90767.0,0.6004928]
[1745339300541,0.00116529,90768.0,90767.0,0.58121002]
[1745339301541,0.00116529,90768.0,90767.0,0.54154168]
[1745339302039,0.00959671,90768.0,90767.0,0.54154168]
[1745339302240,0.00116529,90768.0,90767.0,0.54154168]
[1745339302437,0.00116529,90768.0,90767.0,0.35994168]
[1745339304342,0.00116529,90768.0,90767.0,0.88221368]
[1745339304735,0.1996,90778.0,90777.0,0.1100807]
[1745339304942,0.1996,90778.0,90777.0,0.6298807]
[1745339305534,0.20804547,90778.0,90777.0,0.98420917]
[1745339305940,0.21204547,90778.0,90777.0,0.98520917]
[1745339308045,0.01244547,90778.0,90777.0,0.98520917]
[1745339308250,0.20674547,90778.0,90777.0,0.98520917]
[1745339309045,0.20674547,90778.0,90777.0,0.98820917]
[1745339309250,0.20674547,90778.0,90777.0,0.5238]
[1745339309439,0.69072497,90778.0,90777.0,0.5238]
[1745339309641,0.69072497,90778.0,90777.0,0.6338807]
[1745339309840,0.69072497,90778.0,90777.0,0.5238]
[1745339310243,0.88272497,90778.0,90777.0,0.50451828]
[1745339310751,0.88272497,90778.0,90777.0,0.14371828]
[1745339311338,0.88272497,90778.0,90777.0,0.12371828]
[1745339312643,1.24288497,90778.0,90777.0,0.06685417]
[1745339313046,1.24288497,90778.0,90777.0,0.20685417]
[1745339313237,1.24288497,90778.0,90777.0,0.16685417]
[1745339313439,1.49288497,90778.0,90777.0,0.16685417]
[1745339313639,1.49288497,90778.0,90777.0,0.06685417]
[1745339313839,1.38272497,90778.0,90777.0,0.06685417]
[1745339316147,1.38272497,90778.0,90777.0,0.05308023]
[1745339318653,1.38272497,90778.0,90777.0,0.03379699]
[1745339320244,1.38272497,90778.0,90777.0,0.004]
[1745339320444,1.38272497,90778.0,90777.0,0.10252]
[1745339322249,1.38272497,90778.0,90777.0,0.06284987]
[1745339325953,0.1100892,90770.0,90769.0,0.1100896]
[1745339326254,0.1100868,90774.0,90773.0,0.1651263]
[1745339326459,0.1100868,90774.0,90773.0,0.1851263]
[1745339326850,0.1100868,90774.0,90773.0,0.17135308]
[1745339327050,0.1100868,90774.0,90773.0,0.17035308]
[1745339327453,0.00844547,90778.0,90777.0,0.1100807]
[1745339327648,0.00016529,90787.0,90778.0,0.09079774]
[1745339327863,0.00016529,90787.0,90778.0,0.65485774]
[1745339328060,0.11023429,90787.0,90778.0,0.65485774]
[1745339328260,0.00016529,90787.0,90778.0,0.61519742]
[1745339328459,0.01307026,90779.0,90778.0,0.61519742]
[1745339328654,0.005,90779.0,90778.0,0.61519742]
[1745339329257,0.006,90779.0,90778.0,0.61519742]
[1745339329457,0.006,90779.0,90778.0,0.61419742]
[1745339330256,0.006,90779.0,90778.0,0.61619742]
[1745339332052,0.006,90779.0,90778.0,0.50603742]
[1745339332859,0.014262,90779.0,90778.0,0.50603742]
[1745339333357,0.014262,90779.0,90778.0,0.91813742]
[1745339335153,0.206262,90779.0,90778.0,0.91813742]
[1745339336157,0.206262,90779.0,90778.0,1.01665742]
[1745339336953,0.206262,90779.0,90778.0,0.9780795]
[1745339337159,0.206262,90779.0,90778.0,1.0765995]
[1745339338163,0.3163403,90779.0,90778.0,0.59262]
[1745339338359,0.3163403,90779.0,90778.0,0.434819]
[1745339338559,0.1100904,90769.0,90768.0,0.58748]
[1745339338760,0.1100965,90764.0,90763.0,0.09852]
[1745339339161,0.1100965,90764.0,90752.0,0.00016529]
[1745339339162,0.192,90764.0,90752.0,0.00016529]
[1745339339471,0.1101086,90754.0,90753.0,0.09852]
[1745339339767,0.1101086,90754.0,90742.0,0.3608]
[1745339339768,0.1101147,90749.0,90748.0,0.09852]
[1745339339955,0.1101147,90749.0,90748.0,0.11852]
[1745339340169,0.3021147,90749.0,90748.0,0.11852]
[1745339340357,0.3021147,90749.0,90748.0,0.02]
[1745339340566,0.1101256,90740.0,90739.0,0.00016529]
[1745339340771,0.1101256,90740.0,90739.0,0.06016529]
[1745339341068,0.8021256,90740.0,90739.0,0.06016529]
[1745339341266,0.1101401,90728.0,90725.0,0.17808]
[1745339341467,0.1101401,90728.0,90727.0,0.17661333]
[1745339341858,0.3608,90730.0,90727.0,0.20412077]
[1745339342060,0.0550655,90736.0,90728.0,0.3608]
[1745339342361,0.192,90730.0,90729.0,0.1101389]
[1745339342558,0.192,90730.0,90729.0,0.4004389]
[1745339342757,0.192,90730.0,90729.0,0.11]
[1745339342758,0.20026952,90730.0,90729.0,0.11]
[1745339342963,0.20126952,90730.0,90729.0,0.6209389]
[1745339343471,0.20126952,90730.0,90729.0,0.9127189]
[1745339344762,0.20126952,90730.0,90729.0,0.9187189]
[1745339344967,0.20226952,90730.0,90729.0,1.0379349]
[1745339345268,0.0550581,90748.0,90739.0,0.1101268]
[1745339345269,0.1846,90740.0,90739.0,0.1101268]
[1745339345566,0.1846,90740.0,90739.0,0.5209268]
[1745339345959,0.1846,90740.0,90739.0,0.8970268]
[1745339346365,0.1866,90740.0,90739.0,0.9060268]
[1745339346564,0.19489267,90740.0,90739.0,0.9060268]
[1745339346958,0.19489267,90740.0,90739.0,0.87296004]
[1745339347363,0.19489267,90740.0,90739.0,0.51788]
[1745339347562,0.49801827,90740.0,90739.0,0.51788]
[1745339347962,0.38789267,90740.0,90739.0,0.51788]
[1745339348262,0.69001827,90740.0,90739.0,0.51788]
[1745339348465,0.57989267,90740.0,90739.0,0.51788]
[1745339348667,0.69001827,90740.0,90739.0,0.51788]
[1745339348858,0.57989267,90740.0,90739.0,0.51788]
[1745339349058,0.57989267,90740.0,90739.0,0.4198]
[1745339349258,0.69001827,90740.0,90739.0,0.51788]
[1745339349664,0.69001827,90740.0,90739.0,0.01931697]
[1745339349863,0.1101426,90726.0,90725.0,0.09808]
[1745339350057,0.4709426,90726.0,90725.0,0.24808]
[1745339350263,0.4709426,90726.0,90725.0,0.23808]
[1745339350567,0.1101426,90726.0,90725.0,0.23808]
[1745339350765,0.3876,90727.0,90725.0,0.23808]
[1745339350961,0.4935426,90726.0,90725.0,0.24308]
[1745339351270,0.4935426,90726.0,90725.0,0.24312]
[1745339351768,0.4935426,90726.0,90725.0,0.145]
[1745339351968,0.4925426,90726.0,90725.0,0.23812]
[1745339352160,0.6855426,90726.0,90725.0,0.24912]
[1745339352568,0.3822,90726.0,90725.0,0.24912]
[1745339352876,0.3822,90726.0,90725.0,0.26912]
[1745339353071,0.1902,90726.0,90725.0,0.26912]
[1745339353573,0.3003426,90726.0,90725.0,0.26912]
[1745339353774,0.3003426,90726.0,90725.0,0.26412]
[1745339353974,0.3013426,90726.0,90725.0,0.26912]
[1745339355171,0.05507,90729.0,90725.0,0.26912]
[1745339355370,0.1866,90731.0,90726.0,0.3785]
[1745339355574,0.1101414,90727.0,90726.0,0.56920916]
[1745339356273,0.1866,90731.0,90726.0,0.56920916]
[1745339356470,0.0550638,90739.0,90730.0,0.3608]
[1745339356669,0.11841897,90740.0,90738.0,0.3608]
[1745339356864,0.1101232,90742.0,90739.0,0.187]
[1745339357064,0.11029029,90741.0,90739.0,0.26322291]
[1745339357269,0.00016529,90741.0,90740.0,0.110204]
[1745339357474,0.11028969,90741.0,90740.0,0.200204]
[1745339357971,0.11128969,90741.0,90740.0,0.200204]
[1745339358374,0.11228969,90741.0,90740.0,0.200204]
[1745339358573,0.12065622,90741.0,90740.0,0.200204]
[1745339358771,0.11965622,90741.0,90740.0,0.386104]
[1745339358966,0.12065622,90741.0,90740.0,0.392104]
[1745339360380,0.12065622,90741.0,90740.0,0.571804]
[1745339360775,0.11965622,90741.0,90740.0,0.565804]
[1745339360975,0.11965622,90741.0,90740.0,0.19312]
[1745339360976,0.12065622,90741.0,90740.0,0.19312]
[1745339361174,0.49435622,90741.0,90740.0,0.19312]
[1745339361367,0.20153182,90741.0,90740.0,0.55922]
[1745339361574,0.20253182,90741.0,90740.0,0.673424]
[1745339361873,0.0550371,90783.0,90743.0,0.1]
[1745339362071,0.1100952,90765.0,90764.0,0.3608]
[1745339362268,0.11832351,90765.0,90764.0,0.90972]
[1745339363373,0.11832351,90765.0,90764.0,0.88327665]
[1745339363575,0.11832351,90765.0,90764.0,0.89941602]
[1745339364872,0.11932351,90765.0,90764.0,0.89941602]
[1745339365185,0.11932351,90765.0,90764.0,0.89841602]
[1745339365481,0.11932351,90765.0,90764.0,0.90741602]
[1745339365976,0.31852351,90765.0,90764.0,0.90741602]
[1745339366375,0.31852351,90765.0,90764.0,0.88813351]
[1745339366675,0.31852351,90765.0,90764.0,0.85901051]
[1745339366978,0.31852351,90765.0,90764.0,0.09808]
[1745339367276,0.1101122,90751.0,90750.0,0.37515478]
[1745339367475,0.1101122,90751.0,90750.0,0.48323478]
[1745339367679,0.1101122,90751.0,90750.0,0.46945935]
[1745339368074,0.2912122,90751.0,90750.0,0.46945935]
[1745339368274,0.4907122,90751.0,90750.0,0.46945935]
[1745339368578,0.4917122,90751.0,90750.0,0.47145935]
[1745339369173,0.4927122,90751.0,90750.0,0.47845935]
[1745339370575,0.0550538,90755.0,90750.0,0.58865135]
[1745339370781,0.110111,90752.0,90751.0,0.5759]
[1745339370980,0.110111,90752.0,90751.0,0.6359]
[1745339371178,0.110111,90752.0,90751.0,0.746092]
[1745339371573,0.110111,90752.0,90751.0,1.158192]
[1745339371969,0.110111,90752.0,90751.0,0.8516]
[1745339372278,0.293811,90752.0,90751.0,0.8566]
[1745339373179,0.294811,90752.0,90751.0,0.8586]
[1745339378171,0.294811,90752.0,90751.0,0.84482547]
[1745339378980,0.294811,90752.0,90751.0,0.95501747]
[1745339379275,0.294811,90752.0,90751.0,0.84482547]
[1745339379477,0.294811,90752.0,90751.0,0.6666]
[1745339379874,0.294811,90752.0,90751.0,0.5091]
[1745339380080,0.294811,90752.0,90751.0,0.5291]
[1745339381169,0.294811,90752.0,90751.0,0.117]
[1745339381376,0.294811,90752.0,90751.0,0.19056283]
[1745339381668,0.294811,90752.0,90751.0,0.16056283]
[1745339382072,0.673911,90752.0,90751.0,0.14127538]
[1745339382272,0.673911,90752.0,90751.0,0.15127538]
[1745339382670,0.673911,90752.0,90751.0,0.51207538]
[1745339382977,0.491211,90752.0,90751.0,0.51207538]
[1745339383179,0.299211,90752.0,90751.0,0.88297538]
[1745339383374,0.299211,90752.0,90751.0,0.51207538]
[1745339383779,0.299211,90752.0,90751.0,0.69477538]
[1745339385075,0.298211,90752.0,90751.0,0.69277538]
[1745339385275,0.299211,90752.0,90751.0,0.69577538]
[1745339385879,0.298211,90752.0,90751.0,0.69577538]
[1745339386080,0.299211,90752.0,90751.0,0.69577538]
[1745339386381,0.299211,90752.0,90751.0,0.69477538]
[1745339386974,0.299211,90752.0,90751.0,0.88577538]
[1745339387171,0.0550409,90776.0,90751.0,0.88577538]
[1745339387370,0.1101074,90755.0,90754.0,0.21057454]
[1745339387571,0.1101074,90755.0,90754.0,0.5208]
[1745339387771,0.1101074,90755.0,90754.0,0.630988]
[1745339388480,0.1111074,90755.0,90754.0,0.633988]
[1745339389076,0.1111074,90755.0,90754.0,0.51002677]
[1745339390076,0.1111074,90755.0,90754.0,0.51602677]
[1745339390077,0.1121074,90755.0,90754.0,0.51602677]
[1745339391773,0.3085074,90755.0,90754.0,0.51602677]
[1745339391979,0.3085074,90755.0,90754.0,1.51568677]
[1745339393288,0.5005074,90755.0,90754.0,1.51568677]
[1745339395079,0.1984,90755.0,90754.0,1.10358677]
[1745339395283,0.002,90755.0,90754.0,1.10358677]
[1745339395975,0.002,90755.0,90754.0,1.21377477]
[1745339396175,0.1101042,90758.0,90754.0,1.21377477]
[1745339396385,0.1959,90757.0,90755.0,0.3775]
[1745339396585,0.1959,90757.0,90755.0,0.54105609]
[1745339396884,0.17440001,90764.0,90755.0,0.65124008]
[1745339397088,0.3012965,90764.0,90763.0,0.3608]
[1745339397384,0.3012965,90764.0,90763.0,0.5408]
[1745339398077,0.4932965,90764.0,90763.0,0.52151946]
[1745339398779,0.4942965,90764.0,90763.0,0.52451946]
[1745339399575,0.4942965,90764.0,90763.0,0.51074605]
[1745339399776,0.4952965,90764.0,90763.0,0.51474605]
[1745339400182,0.8718965,90764.0,90763.0,0.51474605]
[1745339400691,0.8718965,90764.0,90763.0,0.61194605]
[1745339401285,0.8718965,90764.0,90763.0,0.51474605]
[1745339401490,1.0118,90764.0,90754.0,0.34702677]
[1745339401678,0.1101122,90751.0,90750.0,0.01435478]
[1745339401882,0.1101122,90751.0,90750.0,0.1272]
[1745339402089,0.3021122,90751.0,90750.0,0.1272]
[1745339402880,0.193,90751.0,90750.0,0.007]
[1745339403088,0.1101341,90733.0,90718.0,0.94832]
[1745339403284,0.1101341,90733.0,90732.0,0.60965302]
[1745339403682,0.1101341,90733.0,90732.0,0.6233695]
[1745339403877,0.4768341,90733.0,90732.0,0.6233695]
[1745339404187,0.6688341,90733.0,90732.0,0.6233695]
[1745339404685,0.6688341,90733.0,90732.0,0.59691742]
[1745339404879,0.6688341,90733.0,90732.0,0.49971742]
[1745339405084,0.001,90733.0,90732.0,0.59695742]
[1745339405288,0.192,90756.0,90732.0,0.95717342]
[1745339405586,0.10042173,90756.0,90755.0,0.7216]
[1745339405787,0.10042173,90756.0,90755.0,0.86884]
[1745339405982,0.10042173,90756.0,90755.0,0.50804]
[1745339406489,0.10742173,90756.0,90755.0,0.4887571]
[1745339406885,0.10942173,90756.0,90755.0,0.4887571]
[1745339407082,0.30142173,90756.0,90755.0,0.3915171]
[1745339407386,0.30142173,90756.0,90755.0,0.4887571]
[1745339407578,0.66060973,90756.0,90755.0,0.03618186]
[1745339407778,1.02140973,90756.0,90755.0,0.03618186]
[1745339407980,1.01940973,90756.0,90755.0,0.03618186]
[1745339408177,1.01940973,90756.0,90755.0,0.01739992]
[1745339408382,1.51940973,90756.0,90755.0,0.01739992]
[1745339408594,1.52240973,90756.0,90755.0,0.01739992]
[1745339408991,1.88580973,90756.0,90755.0,0.01739992]
[1745339409295,1.98641747,90756.0,90755.0,0.01739992]
[1745339409586,1.98641747,90756.0,90755.0,0.1047463]
[1745339409893,1.98541747,90756.0,90755.0,0.1027463]
[1745339410089,1.98541747,90756.0,90755.0,0.1037463]
[1745339410385,1.98541747,90756.0,90755.0,0.08996929]
[1745339410692,1.98541747,90756.0,90755.0,0.08896929]
[1745339410889,1.98841747,90756.0,90755.0,0.08996929]
[1745339411090,1.62822947,90756.0,90755.0,0.08996929]
[1745339411291,1.26742947,90756.0,90755.0,0.08996929]
[1745339411493,1.16700774,90756.0,90755.0,0.09996929]
[1745339411694,0.76911394,90756.0,90755.0,0.11996929]
[1745339411992,0.77411394,90756.0,90755.0,0.11996929]
[1745339412398,0.77311394,90756.0,90755.0,0.11996929]
[1745339412693,0.6725062,90756.0,90755.0,0.09352]
[1745339413196,1.1725062,90756.0,90755.0,0.09352]
[1745339413394,1.1695062,90756.0,90755.0,0.09252]
[1745339413592,1.1715062,90756.0,90755.0,0.07352]
[1745339413787,1.5323062,90756.0,90755.0,0.07352]
[1745339414895,1.5323062,90756.0,90755.0,0.03384225]
[1745339415100,1.5323062,90756.0,90755.0,0.01455446]
[1745339415600,1.5323062,90756.0,90755.0,0.09724]
[1745339415804,1.5323062,90756.0,90755.0,0.10724]
[1745339416500,1.5303062,90756.0,90755.0,0.10824]
[1745339416703,1.5323062,90756.0,90755.0,0.10924]
[1745339417289,1.5303062,90756.0,90755.0,0.10824]
[1745339417496,1.5343062,90756.0,90755.0,0.10924]
[1745339417896,1.5363062,90756.0,90755.0,0.10824]
[1745339418091,1.5323062,90756.0,90755.0,0.10724]
[1745339418295,1.5343062,90756.0,90755.0,0.011]
[1745339418490,1.5323062,90756.0,90755.0,0.10824]
[1745339419099,1.5343062,90756.0,90755.0,0.10824]
[1745339419693,1.5363062,90756.0,90755.0,0.10824]
[1745339420410,1.1755062,90756.0,90755.0,0.12824]
[1745339420598,1.1755062,90756.0,90755.0,0.11446307]
[1745339420897,0.6715062,90756.0,90755.0,0.13346307]
[1745339421098,0.6735062,90756.0,90755.0,0.13446307]
[1745339421593,0.6675062,90756.0,90755.0,0.041]
[1745339421794,0.6715062,90756.0,90755.0,0.12824]
[1745339421997,0.6715062,90756.0,90755.0,0.11856751]
[1745339422394,0.6987062,90756.0,90755.0,0.11856751]
[1745339422696,0.6987062,90756.0,90755.0,0.02132751]
[1745339422896,0.6987062,90756.0,90755.0,0.11856751]
[1745339424290,0.6987062,90756.0,90755.0,0.09856751]
[1745339425907,0.6987062,90756.0,90755.0,0.07927994]
[1745339426098,0.6987062,90756.0,90755.0,0.08927994]
[1745339427204,0.6987062,90756.0,90755.0,0.06172637]
[1745339427703,0.79931394,90756.0,90755.0,0.06172637]
[1745339427907,0.79931394,90756.0,90755.0,0.05097065]
[1745339428504,0.79931394,90756.0,90755.0,0.04757809]
[1745339428996,0.79931394,90756.0,90755.0,0.0316547]
[1745339429403,0.61791394,90756.0,90755.0,0.0316547]
[1745339429603,0.61791394,90756.0,90755.0,0.0216547]
[1745339429805,0.5173062,90756.0,90755.0,0.0216547]
[1745339430595,0.5173062,90756.0,90755.0,0.0116547]
[1745339430797,0.5173062,90756.0,90755.0,0.09684]
[1745339431700,1.0173062,90756.0,90755.0,0.09684]
[1745339431901,1.0173062,90756.0,90755.0,0.10684]
[1745339433400,1.0173062,90756.0,90755.0,0.07928592]
[1745339434001,1.0173062,90756.0,90755.0,0.03960807]
[1745339434403,1.0173062,90756.0,90755.0,0.02032023]
[1745339434594,0.8353062,90756.0,90755.0,0.02032023]
[1745339435203,0.3353062,90756.0,90755.0,0.02032023]
[1745339436999,0.3353062,90756.0,90755.0,0.02]
[1745339437200,0.1433062,90756.0,90755.0,0.1407142]
[1745339439099,0.3353062,90756.0,90755.0,0.1407142]
[1745339439805,0.3353062,90756.0,90755.0,0.13684]
[1745339440008,0.3353062,90756.0,90755.0,0.17104425]
[1745339440206,0.1433062,90756.0,90755.0,0.17104425]
[1745339440599,0.1433062,90756.0,90755.0,0.14349601]
[1745339441805,0.1433062,90756.0,90755.0,0.12972199]
[1745339442606,0.1433062,90756.0,90755.0,0.11043835]
[1745339444209,0.3353062,90756.0,90755.0,0.11043835]
[1745339445005,0.3353062,90756.0,90755.0,0.07355171]
[1745339445210,0.3353062,90756.0,90755.0,0.17035171]
[1745339445914,0.3353062,90756.0,90755.0,0.50088199]
[1745339446212,0.24391394,90756.0,90755.0,0.55088199]
[1745339448310,0.1433062,90756.0,90755.0,0.55088199]
[1745339450816,0.0332,90756.0,90755.0,0.91168199]
[1745339451113,0.005,90779.0,90755.0,0.91168199]
[1745339451114,0.0550419,90775.0,90755.0,1.37186999]
[1745339451413,0.06340307,90775.0,90774.0,0.3608]
[1745339451609,0.06340307,90775.0,90774.0,0.5676]
[1745339451610,0.00836137,90775.0,90774.0,0.5676]
[1745339451811,0.005,90779.0,90774.0,0.5676]
[1745339452009,0.005,90779.0,90775.0,0.36812104]
[1745339452212,0.005,90779.0,90775.0,0.45812104]
[1745339452715,0.1804,90778.0,90775.0,0.41846051]
[1745339453011,0.1804,90778.0,90775.0,0.39202031]
[1745339453213,0.1804,90778.0,90775.0,0.40970323]
[1745339454314,0.009,90779.0,90775.0,0.40970323]
[1745339454518,0.002,90778.0,90775.0,0.41070323]
[1745339455116,0.01436969,90778.0,90775.0,0.41170323]
[1745339455315,0.1100819,90776.0,90775.0,0.41170323]
[1745339456018,0.2957819,90776.0,90775.0,0.41170323]
[1745339456220,0.6691819,90776.0,90775.0,0.21890323]
[1745339456417,0.8685819,90776.0,90775.0,0.21890323]
[1745339456617,0.8715819,90776.0,90775.0,0.21890323]
[1745339456826,0.8715819,90776.0,90775.0,0.31570323]
[1745339457005,0.8715819,90776.0,90775.0,0.20648292]
[1745339457514,0.8715819,90776.0,90775.0,0.10968292]
[1745339457917,0.8715819,90776.0,90775.0,0.20648292]
[1745339458217,0.8725819,90776.0,90775.0,0.20548292]
[1745339458806,0.4917819,90776.0,90775.0,0.20548292]
[1745339460805,0.4917819,90776.0,90775.0,0.18620148]
[1745339462321,0.4917819,90776.0,90775.0,0.17242901]
[1745339463117,0.4917819,90776.0,90775.0,0.13548292]
[1745339463313,0.4917819,90776.0,90775.0,0.17276393]
[1745339464414,0.4917819,90776.0,90775.0,0.16521876]
[1745339467622,0.59238964,90776.0,90775.0,0.16521876]
[1745339469028,0.59238964,90776.0,90775.0,0.14593735]
[1745339469326,0.59238964,90776.0,90775.0,0.10627275]
[1745339470123,0.59238964,90776.0,90775.0,0.1564]
[1745339470522,0.59238964,90776.0,90775.0,0.14601679]
[1745339470920,0.59238964,90776.0,90775.0,0.15601679]
[1745339472527,0.59238964,90776.0,90775.0,3e-08]
[1745339472724,0.1100989,90762.0,90761.0,0.06622704]
[1745339472939,0.4708989,90762.0,90761.0,0.1464]
[1745339473133,0.6628989,90762.0,90761.0,0.1264]
[1745339473425,0.6628989,90762.0,90761.0,0.0999508]
[1745339473619,1.5345989,90762.0,90761.0,0.0999508]
[1745339473822,1.5345989,90762.0,90761.0,0.1029508]
[1745339473823,1.5355989,90762.0,90761.0,0.1029508]
[1745339474127,1.5355989,90762.0,90761.0,0.12064273]
[1745339474518,1.5365989,90762.0,90761.0,0.05369193]
[1745339474727,0.0550516,90759.0,90747.0,0.04]
[1745339474919,0.1101159,90748.0,90747.0,0.1]
[1745339475120,0.3021159,90748.0,90747.0,0.15672256]
[1745339475333,0.8472159,90748.0,90747.0,0.16672256]
[1745339475530,0.8472159,90748.0,90747.0,0.18409371]
[1745339476427,0.8472159,90748.0,90747.0,0.07]
[1745339476635,0.1101292,90737.0,90734.0,0.1879]
[1745339476833,0.1101292,90737.0,90736.0,0.75475903]
[1745339477235,0.3021292,90737.0,90736.0,0.75475903]
[1745339477434,0.3021292,90737.0,90736.0,0.735471]
[1745339477629,0.4862292,90737.0,90736.0,0.735471]
[1745339478424,0.4882292,90737.0,90736.0,1.116771]
[1745339478629,0.3041292,90737.0,90736.0,1.116771]
[1745339478928,0.3031292,90737.0,90736.0,1.117771]
[1745339479129,0.193,90737.0,90736.0,1.117771]
[1745339479332,0.001,90737.0,90736.0,1.116771]
[1745339479540,0.1121292,90737.0,90736.0,1.116771]
[1745339480145,0.1121292,90737.0,90736.0,1.118771]
[1745339481231,0.1121292,90737.0,90736.0,1.05263969]
[1745339481622,0.1121292,90737.0,90736.0,0.95623969]
[1745339481828,0.4951292,90737.0,90736.0,1.05263969]
[1745339482029,0.4951292,90737.0,90736.0,0.86193969]
[1745339482327,0.3041292,90737.0,90736.0,0.86193969]
[1745339482729,0.3041292,90737.0,90736.0,0.76553969]
[1745339482927,0.3041292,90737.0,90736.0,0.86193969]
[1745339483133,0.1121292,90737.0,90736.0,0.86193969]
[1745339483433,0.1121292,90737.0,90736.0,0.84816284]
[1745339484331,0.1121292,90737.0,90736.0,0.82060913]
[1745339485337,0.1121292,90737.0,90736.0,0.80132153]
[1745339487025,0.2978292,90737.0,90736.0,0.80132153]
[1745339487329,0.4898292,90737.0,90736.0,0.58655903]
[1745339488029,0.6756292,90737.0,90736.0,0.58655903]
[1745339488430,0.6756292,90737.0,90736.0,0.39595903]
[1745339489340,0.6756292,90737.0,90736.0,0.36950549]
[1745339492539,0.6756292,90737.0,90736.0,0.32982504]
[1745339493036,0.0550488,90764.0,90736.0,0.32982504]
[1745339493236,0.1101183,90746.0,90745.0,0.21057454]
[1745339493434,0.1101195,90745.0,90744.0,0.5719]
[1745339493629,0.1101195,90745.0,90744.0,0.72812423]
[1745339493840,0.1101195,90745.0,90744.0,0.70883815]
[1745339494232,0.4709195,90745.0,90744.0,0.51783815]
[1745339494538,0.1101195,90745.0,90744.0,0.33573815]
[1745339494739,0.6518195,90745.0,90744.0,0.33573815]
[1745339494931,1.0377195,90745.0,90744.0,0.17]